bitfinex-derivatives/quotes_BTCF0:USTF0_20210707
["timestamp","ask_amount","ask_price","bid_price","bid_amount"]
[1625617608852,2.66846407,34168.0,34167.0,0.93533809]
[1625617609032,2.27352407,34168.0,34167.0,0.93533809]
[1625617609331,1.13296738,34168.0,34167.0,0.93533809]
[1625617609631,2.27287319,34168.0,34167.0,0.93533809]
[1625617611615,2.35967319,34168.0,34167.0,0.93533809]
[1625617611737,2.27287319,34168.0,34167.0,0.93533809]
[1625617612156,1.13296738,34168.0,34167.0,0.93533809]
[1625617612876,1.22086738,34168.0,34167.0,0.93533809]
[1625617612996,1.13296738,34168.0,34167.0,0.93533809]
[1625617613238,2.27370094,34168.0,34167.0,0.93533809]
[1625617613418,1.13296738,34168.0,34167.0,0.93533809]
[1625617613778,1.13296738,34168.0,34167.0,2.14290306]
[1625617614920,1.13296738,34168.0,34167.0,0.93533809]
[1625617615878,1.22006738,34168.0,34167.0,0.93533809]
[1625617616119,1.13296738,34168.0,34167.0,0.93533809]
[1625617616479,1.13296738,34168.0,34167.0,2.14295862]
[1625617616781,2.2730477,34168.0,34167.0,0.93533809]
[1625617616962,1.13296738,34168.0,34167.0,0.93533809]
[1625617617201,2.27300622,34168.0,34167.0,0.93533809]
[1625617618102,1.13296738,34168.0,34167.0,0.93533809]
[1625617618764,1.13296738,34168.0,34167.0,2.14295422]
[1625617619904,1.13296738,34168.0,34167.0,0.93533809]
[1625617620146,2.27291074,34168.0,34167.0,0.93533809]
[1625617620266,2.27291074,34168.0,34167.0,0.69476265]
[1625617620386,3.57501534,34168.0,34167.0,0.69476265]
[1625617620687,3.57501534,34168.0,34167.0,0.00474775]
[1625617620805,3.57501534,34168.0,34166.0,0.69014607]
[1625617620925,4.55149645,34168.0,34166.0,0.69014607]
[1625617621105,1.78325548,34168.0,34167.0,0.0047664]
[1625617621225,1.78325548,34168.0,34167.0,0.00953283]
[1625617621466,4.55025077,34168.0,34167.0,0.00953283]
[1625617621587,4.55025077,34168.0,34167.0,0.01429904]
[1625617621712,3.24814617,34168.0,34167.0,0.70444363]
[1625617621828,3.24814617,34168.0,34167.0,1.73966234]
[1625617622131,3.24814617,34168.0,34167.0,0.70444363]
[1625617622372,3.24814617,34168.0,34167.0,0.94501907]
[1625617622610,3.33674617,34168.0,34167.0,0.94501907]
[1625617622790,4.5468578,34168.0,34167.0,0.70444363]
[1625617623092,4.5468578,34168.0,34167.0,0.01429904]
[1625617623210,3.24814617,34168.0,34167.0,0.70443087]
[1625617623511,3.24814617,34168.0,34167.0,1.73959618]
[1625617624360,3.33544617,34168.0,34167.0,1.98017162]
[1625617624593,3.24814617,34168.0,34167.0,1.98017162]
[1625617626579,2.10883346,34168.0,34167.0,1.98017162]
[1625617628920,2.10883346,34168.0,34167.0,1.97063879]
[1625617629221,3.24677293,34168.0,34167.0,1.97063879]
[1625617630485,3.58654293,34168.0,34167.0,1.97063879]
[1625617630664,3.58654293,34168.0,34167.0,0.93547348]
[1625617633490,3.58654293,34168.0,34167.0,1.97050893]
[1625617635775,3.24677293,34168.0,34167.0,1.97050893]
[1625617636074,0.48115088,34168.0,34167.0,1.97050893]
[1625617636315,3.24901001,34168.0,34167.0,1.97050893]
[1625617637336,2.76785913,34168.0,34167.0,1.97050893]
[1625617637819,0.65130885,34168.0,34167.0,3.1779371]
[1625617638058,1.14065479,34170.0,34167.0,3.1779371]
[1625617638059,0.65238231,34170.0,34167.0,4.61476497]
[1625617638300,0.65242973,34171.0,34169.0,8.48904725]
[1625617638419,0.65242973,34171.0,34170.0,0.48115088]
[1625617638537,0.65242973,34171.0,34170.0,3.4133068]
[1625617638659,0.65242973,34171.0,34170.0,3.41806872]
[1625617639621,1.63076471,34171.0,34170.0,3.41806872]
[1625617639801,0.65242973,34171.0,34170.0,3.41806872]
[1625617640102,1.63064551,34171.0,34170.0,3.41806872]
[1625617641186,1.63064551,34171.0,34170.0,2.2107104]
[1625617642627,1.63064551,34171.0,34170.0,3.41802965]
[1625617643347,1.63064551,34171.0,34170.0,2.2107104]
[1625617643889,2.77248352,34171.0,34170.0,2.2107104]
[1625617644070,2.77248352,34171.0,34170.0,1.17583184]
[1625617644549,4.07627063,34171.0,34170.0,0.65840039]
[1625617644967,4.07627063,34171.0,34170.0,0.74464599]
[1625617645332,4.07627063,34171.0,34170.0,0.26349511]
[1625617645508,4.07627063,34171.0,34170.0,0.00476192]
[1625617646529,4.31684607,34171.0,34170.0,0.00476192]
[1625617646770,4.31684607,34171.0,34169.0,0.06031075]
[1625617647071,4.07111845,34170.0,34169.0,0.06031075]
[1625617647433,4.07111845,34170.0,34169.0,0.06506799]
[1625617647794,4.07111845,34170.0,34169.0,0.00475724]
[1625617649177,4.07111845,34170.0,34169.0,0.17723717]
[1625617649416,4.07111845,34170.0,34169.0,0.00475724]
[1625617650558,4.07111845,34170.0,34169.0,0.24533268]
[1625617650678,4.07111845,34170.0,34169.0,0.9353928]
[1625617651159,4.07111845,34170.0,34169.0,0.24533268]
[1625617652364,4.07111845,34170.0,34169.0,0.41785945]
[1625617652664,4.07111845,34170.0,34169.0,0.24533268]
[1625617654348,4.07111845,34170.0,34169.0,0.93578626]
[1625617654768,4.07111845,34170.0,34169.0,1.971511]
[1625617656153,4.07111845,34170.0,34169.0,0.93578626]
[1625617656934,4.07111845,34170.0,34169.0,0.24533268]
[1625617657353,4.07111845,34170.0,34169.0,0.00475724]
[1625617657595,4.07111845,34170.0,34169.0,0.17739043]
[1625617657714,4.07111845,34170.0,34169.0,0.13699043]
[1625617658918,0.0883,34169.0,34168.0,0.61722216]
[1625617659039,0.0883,34169.0,34167.0,0.74749805]
[1625617659218,0.0883,34169.0,34168.0,0.00475645]
[1625617659337,4.07111845,34170.0,34168.0,0.00475645]
[1625617659518,5.34380138,34171.0,34168.0,0.00475645]
[1625617659760,3.43859748,34169.0,34168.0,0.00475645]
[1625617659999,3.43859748,34169.0,34167.0,0.0047738]
[1625617660300,3.43919109,34168.0,34166.0,0.99530579]
[1625617660480,2.45578788,34167.0,34166.0,0.99530579]
[1625617660600,2.69636332,34167.0,34166.0,0.99530579]
[1625617660843,2.69636332,34167.0,34166.0,1.00007388]
[1625617663066,1.3866207,34167.0,34166.0,1.00007388]
[1625617663490,1.3866207,34167.0,34166.0,2.2084602]
[1625617663728,1.3866207,34167.0,34166.0,1.00007388]
[1625617664208,1.3866207,34167.0,34166.0,2.20845433]
[1625617666132,0.24057544,34167.0,34166.0,2.20845433]
[1625617666972,1.38910936,34167.0,34166.0,2.20845433]
[1625617667875,2.70100731,34167.0,34166.0,1.00007388]
[1625617668295,2.70100731,34167.0,34166.0,0.00476809]
[1625617670761,1.38910936,34167.0,34166.0,0.00476809]
[1625617671962,1.38910936,34167.0,34166.0,1.21306667]
[1625617672142,1.38910936,34167.0,34166.0,0.00476809]
[1625617673344,2.70040611,34167.0,34166.0,0.00476809]
[1625617674671,0.24057544,34167.0,34166.0,0.00476809]
[1625617674912,1.38757371,34167.0,34166.0,0.00476809]
[1625617675392,2.69723318,34167.0,34166.0,0.00476809]
[1625617676535,1.38757371,34167.0,34166.0,0.00476809]
[1625617676897,2.69692409,34167.0,34166.0,0.00476809]
[1625617677016,1.38757371,34167.0,34166.0,0.00476809]
[1625617677257,2.69680358,34167.0,34166.0,0.00476809]
[1625617677497,1.38757371,34167.0,34166.0,0.00476809]
[1625617677736,2.69667671,34167.0,34166.0,0.00476809]
[1625617678699,1.38757371,34167.0,34166.0,0.00476809]
[1625617679242,2.69662561,34167.0,34166.0,0.00476809]
[1625617680921,3.18774361,34167.0,34166.0,0.52260728]
[1625617684172,1.87869171,34167.0,34166.0,0.52260728]
[1625617684591,3.18773592,34167.0,34166.0,0.52260728]
[1625617684712,3.42187592,34167.0,34166.0,0.52260728]
[1625617686395,1.62171371,34167.0,34166.0,0.52260728]
[1625617687716,2.9309748,34167.0,34166.0,0.52260728]
[1625617688017,3.42204426,34167.0,34166.0,0.52260728]
[1625617690425,4.40397859,34167.0,34166.0,1.5582969]
[1625617690663,4.40397859,34167.0,34166.0,0.52260728]
[1625617692585,4.40397859,34167.0,34166.0,1.55348686]
[1625617692887,4.40397859,34167.0,34166.0,1.55825787]
[1625617694747,4.40397859,34167.0,34166.0,0.5226102]
[1625617695045,4.40397859,34167.0,34166.0,1.55821595]
[1625617696967,4.40397859,34167.0,34166.0,0.5226102]
[1625617697507,4.40397859,34167.0,34166.0,1.55821006]
[1625617698768,0.47471544,34167.0,34166.0,0.00477101]
[1625617699008,4.3992026,34167.0,34166.0,1.55823813]
[1625617700451,3.90855996,34167.0,34166.0,1.55823813]
[1625617706222,3.92117857,34167.0,34166.0,1.55823813]
[1625617708928,3.90855996,34167.0,34166.0,1.55823813]
[1625617709229,3.66798452,34167.0,34166.0,1.55823813]
[1625617710069,4.1491354,34167.0,34166.0,1.55823813]
[1625617718129,3.67441996,34167.0,34166.0,1.55823813]
[1625617718372,2.36631207,34167.0,34166.0,4.14967906]
[1625617718909,1.22169723,34167.0,34166.0,4.14967906]
[1625617719149,1.87608605,34167.0,34166.0,4.84070414]
[1625617720235,1.87608605,34167.0,34166.0,5.08127958]
[1625617720654,3.02126306,34167.0,34166.0,5.08127958]
[1625617720775,3.02126306,34167.0,34166.0,3.69917775]
[1625617721556,4.33005628,34167.0,34166.0,3.69917775]
[1625617721677,4.33005628,34167.0,34166.0,3.45860231]
[1625617721795,4.33005628,34167.0,34166.0,2.24926321]
[1625617722156,4.57063172,34167.0,34166.0,2.24926321]
[1625617722457,4.57063172,34167.0,34166.0,1.21361846]
[1625617722576,4.58322405,34167.0,34166.0,1.21361846]
[1625617722698,7.05304559,34167.0,34166.0,0.00477101]
[1625617723664,7.05304559,34167.0,34165.0,0.00477896]
[1625617723901,0.01259305,34166.0,34165.0,0.00477896]
[1625617724141,5.56198601,34166.0,34165.0,0.00477896]
[1625617725768,5.54939296,34166.0,34165.0,0.00477896]
[1625617726068,5.56198618,34166.0,34165.0,0.00477896]
[1625617726608,5.56198618,34166.0,34164.0,0.00477902]
[1625617726849,5.56198618,34166.0,34165.0,0.00477902]
[1625617726969,0.01259322,34166.0,34165.0,0.00477902]
[1625617727089,5.56401759,34166.0,34165.0,0.00477902]
[1625617727210,5.56401759,34166.0,34164.0,0.00477902]
[1625617727330,5.55123041,34165.0,34164.0,0.00477902]
[1625617727693,5.63953041,34165.0,34164.0,0.00477902]
[1625617728112,4.17013988,34165.0,34164.0,0.3500831]
[1625617728777,4.08183988,34165.0,34164.0,0.3500831]
[1625617729614,4.08183988,34165.0,34164.0,0.52270935]
[1625617729854,4.57238637,34165.0,34164.0,0.52270935]
[1625617730094,4.57238637,34165.0,34164.0,1.21327576]
[1625617730575,4.57238637,34165.0,34164.0,0.52270935]
[1625617730757,4.57238637,34165.0,34164.0,0.86798068]
[1625617731054,4.65978637,34165.0,34164.0,0.86798068]
[1625617731234,4.98185637,34165.0,34164.0,0.35005035]
[1625617734057,6.04524698,34165.0,34164.0,0.00477902]
[1625617734299,4.57238637,34165.0,34164.0,0.00477902]
[1625617735144,4.57238637,34165.0,34164.0,0.34997728]
[1625617736346,4.57238637,34165.0,34164.0,0.59055272]
[1625617736586,4.66078637,34165.0,34164.0,0.34997728]
[1625617736887,4.66078637,34165.0,34164.0,0.00477902]
[1625617737977,6.13337037,34165.0,34164.0,0.00477902]
[1625617738211,6.13337037,34165.0,34161.0,0.34515324]
[1625617738212,6.64282388,34165.0,34161.0,0.34515324]
[1625617738332,0.24057544,34162.0,34161.0,0.34515324]
[1625617738455,6.28824795,34162.0,34159.0,0.34517107]
[1625617738694,1.71155583,34162.0,34161.0,0.00057274]
[1625617738812,1.71155583,34162.0,34158.0,1.10350204]
[1625617738933,6.28711409,34162.0,34158.0,0.34517]
[1625617739175,4.89557002,34159.0,34158.0,0.34517]
[1625617739295,4.89557002,34159.0,34158.0,0.15417]
[1625617739420,4.89557002,34159.0,34158.0,0.0047672]
[1625617739600,7.36604113,34159.0,34158.0,0.0047672]
[1625617739961,7.36604113,34159.0,34157.0,0.00476733]
[1625617740081,4.57149317,34158.0,34157.0,0.00476733]
[1625617740321,5.57149317,34158.0,34157.0,0.00476733]
[1625617740443,6.05264405,34158.0,34157.0,0.00476733]
[1625617740683,7.5208413,34158.0,34157.0,0.00476733]
[1625617740804,7.5208413,34158.0,34156.0,2.5391]
[1625617740986,6.03462159,34157.0,34156.0,2.4809]
[1625617741106,6.03462159,34157.0,34156.0,2.1169]
[1625617741227,6.03462159,34157.0,34156.0,1.8686]
[1625617741347,6.23462159,34157.0,34151.0,0.51753211]
[1625617741467,7.23462159,34157.0,34149.0,1.20763459]
[1625617741766,7.23462159,34157.0,34148.0,1.03511536]
[1625617741767,4.56294565,34150.0,34148.0,0.51758031]
[1625617741887,1.98345268,34150.0,34148.0,0.51758031]
[1625617742005,3.25993669,34149.0,34148.0,0.51758031]
[1625617742125,3.25993669,34149.0,34148.0,0.41748031]
[1625617742367,3.98166301,34149.0,34148.0,0.397213]
[1625617742486,5.28563406,34149.0,34148.0,0.00483269]
[1625617742845,5.37213406,34149.0,34148.0,0.00483269]
[1625617742966,4.06816301,34149.0,34148.0,0.00483269]
[1625617743206,5.06816301,34149.0,34148.0,0.00483269]
[1625617743326,5.06816301,34149.0,34146.0,0.00483782]
[1625617743568,4.06816301,34149.0,34148.0,0.00483773]
[1625617743750,1.80822632,34149.0,34148.0,0.00483773]
[1625617743868,4.2402,34147.0,34146.0,0.00483773]
[1625617744167,5.86806697,34147.0,34145.0,0.74638237]
[1625617744408,5.21688763,34147.0,34146.0,0.00483781]
[1625617744650,4.89092639,34147.0,34146.0,0.00483781]
[1625617745255,4.2402,34147.0,34146.0,0.00483781]
[1625617746994,4.2402,34147.0,34145.0,0.00483796]
[1625617747532,4.89034623,34147.0,34144.0,0.00483807]
[1625617748375,0.24057544,34145.0,34143.0,0.69322133]
[1625617748675,0.24057544,34145.0,34143.0,0.68838319]
[1625617748800,0.24057544,34145.0,34142.0,1.33015023]
[1625617748801,0.24057544,34145.0,34142.0,0.98559133]
[1625617748917,0.24057544,34145.0,34144.0,0.00483816]
[1625617749219,0.24057544,34145.0,34142.0,0.98559133]
[1625617749220,0.24057544,34145.0,34143.0,0.00477278]
[1625617749399,0.24057544,34145.0,34144.0,0.00477186]
[1625617749519,0.32727544,34145.0,34144.0,0.00477186]
[1625617749818,0.32727544,34145.0,34143.0,0.00477176]
[1625617749939,0.32727544,34145.0,34142.0,0.98559133]
[1625617750360,0.24057544,34145.0,34142.0,0.98559133]
[1625617750480,0.24057544,34145.0,34143.0,0.00477158]
[1625617750601,0.24057544,34148.0,34143.0,0.92264019]
[1625617750723,0.24057544,34148.0,34144.0,0.057]
[1625617751083,0.24057544,34148.0,34145.0,0.69235409]
[1625617751204,0.24057544,34148.0,34145.0,0.74935409]
[1625617751325,0.24057544,34148.0,34145.0,0.06177122]
[1625617751744,4.5407,34146.0,34145.0,0.00477122]
[1625617751863,4.76132,34146.0,34144.0,0.68760488]
[1625617751986,0.0867,34145.0,34144.0,0.68760488]
[1625617752107,0.0867,34145.0,34143.0,0.687648]
[1625617752351,0.0867,34145.0,34142.0,0.24057544]
[1625617752468,0.24057544,34143.0,34142.0,0.24057544]
[1625617753130,0.24057544,34143.0,34142.0,0.24534709]
[1625617753610,0.49200544,34143.0,34142.0,0.24057544]
[1625617757760,0.24057544,34143.0,34142.0,0.24057544]
[1625617757881,0.24057544,34143.0,34142.0,0.24534706]
[1625617758902,0.24057544,34143.0,34142.0,0.24057544]
[1625617759445,0.24057544,34143.0,34137.0,2.49264083]
[1625617759446,1.53019544,34143.0,34139.0,0.68678532]
[1625617759567,1.53019544,34143.0,34137.0,0.02]
[1625617759862,0.53019544,34143.0,34137.0,0.70681566]
[1625617759981,0.53019544,34143.0,34138.0,0.00477209]
[1625617760345,1.53019544,34143.0,34138.0,0.00477209]
[1625617760523,0.53019544,34143.0,34140.0,0.24057544]
[1625617760642,1.0,34141.0,34140.0,0.24057544]
[1625617761184,1.0,34141.0,34137.0,0.02]
[1625617761905,1.0,34138.0,34137.0,0.02]
[1625617762509,1.48115088,34138.0,34137.0,0.02]
[1625617762748,1.48115088,34138.0,34133.0,0.51564242]
[1625617763049,1.48115088,34138.0,34130.0,1.20162424]
[1625617763050,1.48115088,34138.0,34130.0,1.0299713]
[1625617763350,1.48115088,34138.0,34134.0,0.00477282]
[1625617763593,1.48115088,34138.0,34131.0,0.00477278]
[1625617763834,4.7494,34131.0,34129.0,0.24057544]
[1625617764375,4.7494,34131.0,34130.0,0.00477289]
[1625617764493,5.23055088,34131.0,34130.0,0.00477289]
[1625617764974,6.23055088,34131.0,34130.0,0.00477289]
[1625617765753,5.23055088,34131.0,34130.0,0.00477289]
[1625617767197,6.23055088,34131.0,34130.0,0.00477289]
[1625617767436,5.23055088,34131.0,34130.0,0.00477289]
[1625617771229,0.48115088,34131.0,34130.0,0.00477289]
[1625617771352,0.01,34134.0,34130.0,0.28706289]
[1625617771830,0.9124,34144.0,34131.0,0.00484699]
[1625617771950,0.9124,34144.0,34133.0,3.8333]
[1625617772312,0.9124,34144.0,34134.0,0.00484687]
[1625617772553,0.24057544,34143.0,34142.0,0.24057544]
[1625617772734,0.24057544,34143.0,34142.0,0.45920544]
[1625617772852,0.24057544,34143.0,34142.0,0.46405238]
[1625617773035,0.24057544,34143.0,34142.0,0.22347694]
[1625617773152,5.90827544,34143.0,34138.0,0.24057544]
[1625617773392,4.90827544,34143.0,34138.0,0.24057544]
[1625617773513,5.90827544,34143.0,34138.0,0.24057544]
[1625617773633,5.90827544,34143.0,34139.0,0.00484723]
[1625617774534,0.24057544,34141.0,34139.0,0.00484723]
[1625617774774,0.0884,34140.0,34139.0,0.00484723]
[1625617774895,0.24057544,34141.0,34139.0,0.00484723]
[1625617777007,0.0879,34140.0,34136.0,0.00484723]
[1625617777481,1.0,34140.0,34136.0,0.00484723]
[1625617777660,0.24057544,34141.0,34136.0,0.00484723]
[1625617778622,0.24057544,34137.0,34136.0,0.00484723]
[1625617779043,0.24057544,34137.0,34135.0,0.49997544]
[1625617779164,0.24057544,34137.0,34136.0,0.00484709]
[1625617780667,0.24057544,34137.0,34136.0,0.24542253]
[1625617789810,0.52076544,34137.0,34136.0,0.24542253]
[1625617798228,1.49718209,34137.0,34136.0,0.24542253]
[1625617800150,2.63671709,34137.0,34136.0,0.24542253]
[1625617801532,1.49718209,34137.0,34136.0,0.24542253]
[1625617801774,2.63638686,34137.0,34136.0,0.24542253]
[1625617802916,1.49718209,34137.0,34136.0,0.24542253]
[1625617803396,2.63512604,34137.0,34136.0,0.24542253]
[1625617803637,1.49718209,34137.0,34136.0,0.24542253]
[1625617804056,2.63199537,34137.0,34136.0,0.24542253]
[1625617805560,3.92804263,34137.0,34136.0,0.24542253]
[1625617806039,3.92804263,34137.0,34136.0,0.00484709]
[1625617806160,0.0864,34136.0,34128.0,1.03450144]
[1625617806399,0.0864,34136.0,34126.0,1.03457728]
[1625617806520,0.0123907,34135.0,34129.0,0.00483674]
[1625617806641,2.10136365,34127.0,34124.0,0.24057544]
[1625617806761,3.09860997,34127.0,34122.0,1.0347722]
[1625617806883,0.9695059,34125.0,34121.0,1.03482036]
[1625617807002,4.0355,34123.0,34121.0,1.03482036]
[1625617807122,0.96911932,34122.0,34119.0,1.27544202]
[1625617807367,0.96881369,34121.0,34118.0,1.0349056]
[1625617807662,1.0,34119.0,34116.0,1.03495278]
[1625617807785,1.0,34119.0,34114.0,1.03373121]
[1625617807786,1.24156,34119.0,34114.0,1.03373121]
[1625617808085,2.36845652,34119.0,34115.0,0.00488468]
[1625617808329,2.36845652,34119.0,34100.0,0.057]
[1625617808330,1.32641809,34118.0,34106.0,1.37846569]
[1625617808445,1.82641809,34118.0,34103.0,1.5507739]
[1625617808565,1.82641809,34118.0,34103.0,1.20629439]
[1625617808566,1.12432335,34113.0,34103.0,1.20629439]
[1625617808803,1.12432335,34113.0,34101.0,1.20643395]
[1625617808804,1.18979176,34108.0,34101.0,1.20643395]
[1625617809045,1.18979176,34108.0,34096.0,1.7917048]
[1625617809046,0.16038911,34105.0,34104.0,0.1345513]
[1625617809165,0.16038911,34105.0,34104.0,0.1278513]
[1625617809288,4.9289,34105.0,34096.0,1.44709067]
[1625617809465,1.33662,34101.0,34096.0,1.44709067]
[1625617809588,1.33662,34101.0,34096.0,0.24057544]
[1625617809766,1.0,34100.0,34096.0,0.24057544]
[1625617810427,1.0882,34100.0,34096.0,0.24057544]
[1625617810546,1.0,34097.0,34096.0,0.24057544]
[1625617810727,1.48115088,34097.0,34096.0,0.24057544]
[1625617810846,0.48115088,34097.0,34096.0,0.24057544]
[1625617811386,0.48115088,34097.0,34093.0,0.24057544]
[1625617811930,0.087,34104.0,34093.0,0.24057544]
[1625617812053,1.11387023,34109.0,34094.0,0.057]
[1625617812353,1.11431671,34110.0,34094.0,0.057]
[1625617812592,2.14483109,34112.0,34094.0,0.057]
[1625617812834,1.27057544,34112.0,34107.0,0.24057544]
[1625617813134,0.27057544,34112.0,34107.0,0.24057544]
[1625617813313,1.27057544,34112.0,34107.0,0.24057544]
[1625617813794,0.0875,34111.0,34107.0,0.24057544]
[1625617813914,4.49805088,34108.0,34098.0,0.24057544]
[1625617814034,5.49805088,34108.0,34098.0,0.24057544]
[1625617814275,1.0,34102.0,34098.0,0.24057544]
[1625617814394,0.088,34101.0,34098.0,0.24057544]
[1625617814577,1.0,34100.0,34098.0,0.24057544]
[1625617814752,0.48115088,34099.0,34098.0,0.24057544]
[1625617815235,0.48115088,34099.0,34098.0,0.20457544]
[1625617815355,1.48115088,34099.0,34098.0,0.19257544]
[1625617815596,1.48115088,34099.0,34098.0,0.05657544]
[1625617815837,0.48115088,34099.0,34098.0,0.05657544]
[1625617817337,0.48115088,34099.0,34091.0,0.24057544]
[1625617817338,0.82642088,34099.0,34091.0,0.24057544]
[1625617817457,0.82642088,34099.0,34085.0,1.19829644]
[1625617817579,1.82642088,34099.0,34085.0,1.19829644]
[1625617817701,1.82642088,34099.0,34081.0,1.19837394]
[1625617817818,1.0,34092.0,34081.0,1.19837394]
[1625617817942,1.23608,34092.0,34080.0,1.19690778]
[1625617818059,0.23608,34092.0,34080.0,1.19690778]
[1625617818180,1.0,34091.0,34079.0,1.19694844]
[1625617818422,1.0,34091.0,34080.0,0.057]
[1625617818602,1.0,34091.0,34078.0,1.19696181]
[1625617818720,0.23608,34092.0,34078.0,1.19696181]
[1625617818842,0.24057544,34082.0,34081.0,0.24057544]
[1625617819862,0.56296544,34082.0,34081.0,0.24057544]
[1625617820711,0.56296544,34082.0,34078.0,0.24057544]
[1625617820824,0.24057544,34079.0,34078.0,0.24057544]
[1625617823049,0.24057544,34079.0,34071.0,0.92308127]
[1625617823471,0.24057544,34079.0,34071.0,0.24057544]
[1625617824855,0.24057544,34079.0,34078.0,0.24057544]
[1625617827083,0.24057544,34086.0,34078.0,0.24057544]
[1625617827203,1.0,34096.0,34079.0,0.057]
[1625617827324,0.07841263,34106.0,34079.0,0.06183916]
[1625617827442,0.0868,34107.0,34080.0,0.08506822]
[1625617827562,3.9287,34108.0,34080.0,0.08506822]
[1625617827683,1.0,34104.0,34080.0,0.08990715]
[1625617827927,1.0,34102.0,34081.0,0.00483863]
[1625617828224,3.9287,34108.0,34081.0,0.00483863]
[1625617828225,1.0,34101.0,34081.0,0.00483863]
[1625617828464,1.0,34106.0,34081.0,0.00483863]
[1625617828705,1.0,34100.0,34081.0,0.00483863]
[1625617828825,0.24057544,34094.0,34092.0,0.24057544]
[1625617828944,0.24057544,34094.0,34092.0,0.51348544]
[1625617830087,0.24057544,34094.0,34093.0,0.00485645]
[1625617831953,0.24057544,34094.0,34090.0,0.0048566]
[1625617832192,0.24057544,34094.0,34093.0,0.0048566]
[1625617832492,0.24057544,34094.0,34091.0,0.00485681]
[1625617832733,0.24057544,34094.0,34093.0,0.00485681]
[1625617832974,0.24057544,34094.0,34092.0,0.00485683]
[1625617833336,1.32957544,34094.0,34093.0,0.00485698]
[1625617833580,1.24057544,34094.0,34079.0,0.057]
[1625617833758,1.24057544,34094.0,34093.0,0.00485736]
[1625617833996,1.24057544,34094.0,34080.0,0.00485744]
[1625617834297,1.24057544,34094.0,34079.0,0.057]
[1625617834598,0.24057544,34094.0,34080.0,0.00485732]
[1625617834897,0.48115088,34081.0,34080.0,0.00485732]
[1625617835017,0.81472088,34081.0,34080.0,0.00485732]
[1625617835259,0.81472088,34081.0,34079.0,0.00485747]
[1625617835499,0.81472088,34081.0,34080.0,0.00485744]
[1625617835979,0.81472088,34081.0,34078.0,0.24057544]
[1625617835980,0.81472088,34081.0,34079.0,0.01352116]
[1625617838442,0.81472088,34081.0,34077.0,0.01352146]
[1625617838683,0.81472088,34081.0,34073.0,0.07432809]
[1625617838684,0.81472088,34081.0,34080.0,0.01352151]
[1625617838923,1.05529632,34081.0,34078.0,0.01352209]
[1625617839283,1.05529632,34081.0,34073.0,0.01352194]
[1625617839584,1.05529632,34081.0,34079.0,0.01352164]
[1625617839703,1.05529632,34081.0,34074.0,0.01352139]
[1625617839944,1.05529632,34081.0,34074.0,0.00485738]
[1625617840124,1.05529632,34081.0,34073.0,0.01352139]
[1625617840305,1.05529632,34081.0,34075.0,0.01352139]
[1625617840606,1.05529632,34081.0,34074.0,0.01352187]
[1625617840846,1.05529632,34081.0,34076.0,0.01352187]
[1625617840967,0.24057544,34077.0,34076.0,0.01352187]
[1625617841088,0.24057544,34077.0,34075.0,0.01352174]
[1625617841332,0.24057544,34077.0,34076.0,0.01352162]
[1625617841688,0.24057544,34077.0,34073.0,0.01352162]
[1625617841928,0.72172632,34081.0,34076.0,0.01352157]
[1625617842049,0.72172632,34081.0,34076.0,0.28766157]
[1625617842172,0.72172632,34081.0,34076.0,0.27414]
[1625617842411,0.72172632,34081.0,34077.0,0.01352167]
[1625617843021,0.72172632,34081.0,34080.0,0.48115088]
[1625617843559,0.72172632,34081.0,34080.0,0.4946733]
[1625617845779,0.48115088,34081.0,34080.0,0.7284333]
[1625617845956,4.56147544,34091.0,34081.0,0.057]
[1625617846379,4.56147544,34091.0,34082.0,0.01352073]
[1625617846502,0.24057544,34091.0,34082.0,0.01352073]
[1625617847040,0.48115088,34091.0,34090.0,0.24057544]
[1625617847162,0.48115088,34091.0,34090.0,0.47190544]
[1625617847582,0.48115088,34091.0,34090.0,0.48542461]
[1625617848180,0.48115088,34091.0,34090.0,0.24484917]
[1625617848427,0.48115088,34091.0,34090.0,0.01351917]
[1625617848965,0.48115088,34091.0,34088.0,0.01352031]
[1625617849085,0.74215088,34091.0,34088.0,0.01352031]
[1625617849264,0.74215088,34091.0,34090.0,0.00485703]
[1625617849384,0.74215088,34091.0,34089.0,0.01351937]
[1625617849684,0.74215088,34091.0,34088.0,0.01351935]
[1625617850227,0.74215088,34091.0,34082.0,0.01351549]
[1625617850887,0.74215088,34091.0,34081.0,0.0135162]
[1625617851006,0.48115088,34082.0,34080.0,0.48115088]
[1625617851614,0.48115088,34082.0,34081.0,0.01351623]
[1625617853536,0.48115088,34082.0,34081.0,0.30433623]
[1625617854799,0.48115088,34091.0,34081.0,0.30433623]
[1625617854917,0.48115088,34091.0,34081.0,0.36133623]
[1625617855038,0.48115088,34091.0,34090.0,0.24057544]
[1625617855161,0.48115088,34091.0,34090.0,0.49183544]
[1625617855280,0.24057544,34091.0,34090.0,0.49668687]
[1625617855640,0.24057544,34100.0,34090.0,0.49668687]
[1625617855762,0.24057544,34100.0,34090.0,0.55368687]
[1625617856122,0.24057544,34100.0,34091.0,0.00485108]
[1625617857026,0.24057544,34100.0,34099.0,0.48115088]
[1625617857507,0.24057544,34100.0,34099.0,0.48600194]
[1625617858767,0.24057544,34100.0,34099.0,0.00485106]
[1625617858887,1.24057544,34100.0,34099.0,0.00485106]
[1625617859007,1.24057544,34100.0,34090.0,0.24057544]
[1625617859008,1.64974541,34100.0,34091.0,0.00485133]
[1625617859248,0.07985169,34098.0,34091.0,0.00485133]
[1625617859429,2.4123387,34100.0,34091.0,0.00485133]
[1625617859430,0.56106221,34100.0,34091.0,0.00485133]
[1625617859666,0.48115088,34100.0,34091.0,0.00485133]
[1625617859909,0.48115088,34100.0,34091.0,0.06185133]
[1625617860210,0.48115088,34100.0,34091.0,0.00485133]
[1625617860449,0.48115088,34100.0,34092.0,0.0048512]
[1625617860872,0.56108124,34100.0,34092.0,0.0048512]
[1625617860991,0.56108124,34100.0,34091.0,0.00485124]
[1625617861110,0.56108124,34100.0,34098.0,0.24057544]
[1625617861232,0.0799078,34099.0,34098.0,0.24057544]
[1625617862188,0.0799078,34099.0,34090.0,0.24057544]
[1625617862489,1.11700758,34099.0,34091.0,0.00485157]
[1625617862730,0.39901532,34096.0,34091.0,0.00485157]
[1625617862912,0.39892122,34095.0,34091.0,0.00485157]
[1625617863089,0.24057544,34092.0,34091.0,0.00485157]
[1625617864232,0.40045788,34096.0,34091.0,0.00485157]
[1625617864359,0.40045788,34096.0,34091.0,0.25539157]
[1625617864360,0.08018761,34096.0,34091.0,0.25539157]
[1625617864654,0.08018761,34096.0,34092.0,0.00485084]
[1625617864775,0.08026215,34098.0,34092.0,0.00485084]
[1625617865073,0.32056799,34099.0,34098.0,0.72172632]
[1625617865074,0.08029001,34099.0,34098.0,0.72172632]
[1625617865194,0.08029001,34099.0,34098.0,1.04010632]
[1625617865433,0.08029001,34099.0,34098.0,1.04495681]
[1625617866034,0.08029001,34099.0,34098.0,1.04010632]
[1625617866035,2.08913654,34099.0,34098.0,1.04010632]
[1625617866275,2.08913654,34099.0,34098.0,1.04495715]